fUSD/lending_fUSD_20260529
["ID","MTS","AMOUNT","RATE_DAILY","PERIOD"]
[423343918,1780065062000,-19600.0,0.000139,5]
[423343926,1780065062000,-150.0,0.00013952,2]
[423343935,1780065062000,-150.0,0.00013987,2]
[423343934,1780065062000,-150.0,0.00013987,2]
[423343925,1780065062000,-211.98336987,0.00013942,2]
[423343922,1780065062000,-150.0,0.00013928,2]
[423343958,1780065062000,-150.0,0.00014105,2]
[423343954,1780065062000,-211.98336987,0.00014093,2]
[423343996,1780065062000,-150.0,0.00014308,2]
[423343985,1780065062000,-150.0,0.00014237,2]
[423343994,1780065062000,-11981.31797714,0.00014299,2]
[423343990,1780065062000,-211.98336987,0.00014275,2]
[423343993,1780065062000,-211.98336987,0.0001429,2]
[423343991,1780065062000,-150.0,0.00014281,2]
[423343998,1780065062000,-190.96,0.0001432,2]
[423344007,1780065062000,-211.98336987,0.00014366,2]
[423344006,1780065062000,-150.0,0.00014362,2]
[423344000,1780065062000,-211.98336987,0.0001432,2]
[423344005,1780065062000,-211.98336987,0.00014351,2]
[423343999,1780065062000,-150.0,0.0001432,2]
[423343995,1780065062000,-211.98336987,0.00014305,2]
[423344003,1780065062000,-211.98336987,0.00014335,2]
[423344002,1780065062000,-150.0,0.00014325,2]
[423344004,1780065062000,-150.0,0.00014344,2]
[423344008,1780065062000,-150.0,0.00014369,2]
[423344009,1780065062000,-150.0,0.00014369,2]
[423344012,1780065062000,-211.98336987,0.00014381,2]
[423344014,1780065062000,-150.0,0.00014387,2]
[423344010,1780065062000,-2000.0,0.0001437,7]
[423344016,1780065062000,-211.98336987,0.00014411,2]
[423344013,1780065062000,-166.66,0.00014384,2]
[423344011,1780065062000,-150.0,0.0001438,2]
[423344015,1780065062000,-211.98336987,0.00014396,2]
[423343956,1780065062000,-14756.4578142,0.00014098,2]
[423343997,1780065062000,-150.0,0.00014312,2]
[423343992,1780065062000,-150.0,0.00014281,2]
[423344001,1780065062000,-150.0,0.00014325,2]
[423343987,1780065062000,-166.66,0.00014247,2]
[423343989,1780065062000,-150.0,0.00014273,2]
[423343961,1780065062000,-150.0,0.00014112,2]
[423343963,1780065062000,-150.0,0.0001413,2]
[423343971,1780065062000,-211.98336987,0.00014169,2]
[423343969,1780065062000,-150.0,0.00014162,2]
[423343964,1780065062000,-211.98336987,0.00014139,2]
[423343965,1780065062000,-150.0,0.00014149,2]
[423343966,1780065062000,-150.0,0.00014149,2]
[423343967,1780065062000,-150.0,0.00014154,2]
[423343970,1780065062000,-150.0,0.00014166,2]
[423343968,1780065062000,-211.98336987,0.00014154,2]
[423343973,1780065062000,-150.0,0.00014193,2]
[423343983,1780065062000,-150.0,0.00014237,2]
[423343962,1780065062000,-211.98336987,0.00014123,2]
[423343972,1780065062000,-211.98336987,0.00014184,2]
[423343980,1780065062000,-150.0,0.00014237,2]
[423343988,1780065062000,-211.98336987,0.0001426,2]
[423343984,1780065062000,-150.0,0.00014237,2]
[423343982,1780065062000,-150.0,0.00014237,2]
[423343976,1780065062000,-979.73,0.000142,2]
[423343975,1780065062000,-211.98336987,0.00014199,2]
[423343986,1780065062000,-211.98336987,0.00014245,2]
[423343974,1780065062000,-150.0,0.00014193,2]
[423343977,1780065062000,-150.0,0.00014201,2]
[423343978,1780065062000,-211.98336987,0.00014214,2]
[423343981,1780065062000,-150.0,0.00014237,2]
[423343979,1780065062000,-211.98336987,0.00014229,2]
[423344058,1780065063000,-150.0,0.00014634,2]
[423344055,1780065063000,-150.0,0.00014612,2]
[423344066,1780065063000,-150.0,0.00014678,2]
[423344046,1780065063000,-211.98336987,0.00014578,2]
[423344056,1780065063000,-211.98336987,0.00014623,2]
[423344049,1780065063000,-211.98336987,0.00014593,2]
[423344052,1780065063000,-211.98336987,0.00014608,2]
[423344050,1780065063000,-150.0,0.00014594,2]
[423344048,1780065063000,-150.0,0.0001459,2]
[423344047,1780065063000,-150.0,0.0001459,2]
[423344063,1780065063000,-150.0,0.00014665,2]
[423344051,1780065063000,-4900.0,0.000146,5]
[423344061,1780065063000,-150.0,0.00014653,2]
[423344057,1780065063000,-150.0,0.00014629,2]
[423344065,1780065063000,-150.0,0.00014678,2]
[423344074,1780065063000,-150.0,0.00014722,2]
[423344062,1780065063000,-211.98336987,0.00014653,2]
[423344060,1780065063000,-211.98336987,0.00014638,2]
[423344064,1780065063000,-211.98336987,0.00014668,2]
[423344068,1780065063000,-150.0,0.00014687,2]
[423344077,1780065063000,-150.0,0.00014737,2]
[423344076,1780065063000,-150.0,0.00014737,2]
[423344078,1780065063000,-211.98336987,0.00014744,2]
[423344067,1780065063000,-211.98336987,0.00014684,2]
[423344072,1780065063000,-211.98336987,0.00014714,2]
[423344045,1780065063000,-211.98336987,0.00014562,2]
[423344059,1780065063000,-150.0,0.00014634,2]
[423344054,1780065063000,-150.0,0.00014612,2]
[423344018,1780065063000,-150.0,0.00014413,2]
[423344044,1780065063000,-150.0,0.00014558,2]
[423344017,1780065063000,-150.0,0.00014413,2]
[423344020,1780065063000,-211.98336987,0.00014426,2]
[423344019,1780065063000,-150.0,0.00014415,2]
[423344021,1780065063000,-211.98336987,0.00014441,2]
[423344023,1780065063000,-211.98336987,0.00014456,2]
[423344026,1780065063000,-150.0,0.00014462,2]
[423344028,1780065063000,-150.0,0.00014487,2]
[423344024,1780065063000,-150.0,0.00014457,2]
[423344025,1780065063000,-150.0,0.00014457,2]
[423344027,1780065063000,-211.98336987,0.00014472,2]
[423344022,1780065063000,-150.0,0.00014451,2]
[423344029,1780065063000,-150.0,0.00014487,2]
[423344043,1780065063000,-211.98336987,0.00014547,2]
[423344030,1780065063000,-150.0,0.00014487,2]
[423344041,1780065063000,-150.0,0.00014546,2]
[423344031,1780065063000,-150.0,0.00014487,2]
[423344033,1780065063000,-24500.0,0.000145,5]
[423344032,1780065063000,-211.98336987,0.00014487,2]
[423344037,1780065063000,-211.98336987,0.00014517,2]
[423344039,1780065063000,-211.98336987,0.00014532,2]
[423344040,1780065063000,-150.0,0.00014537,2]
[423344034,1780065063000,-150.0,0.00014501,2]
[423344038,1780065063000,-150.0,0.00014522,2]
[423344036,1780065063000,-211.98336987,0.00014502,2]
[423344053,1780065063000,-150.0,0.00014612,2]
[423344042,1780065063000,-150.0,0.00014546,2]
[423344035,1780065063000,-150.0,0.00014501,2]
[423344070,1780065063000,-4900.0,0.000147,5]
[423344081,1780065063000,-150.0,0.00014766,2]
[423344075,1780065063000,-211.98336987,0.00014729,2]
[423344108,1780065063000,-150.0,0.00014898,2]
[423344107,1780065063000,-150.0,0.00014898,2]
[423344102,1780065063000,-211.98336987,0.0001488,2]
[423344112,1780065063000,-151.0,0.000149,2]
[423344109,1780065063000,-151.0,0.000149,2]
[423344124,1780065063000,-151.0,0.000149,2]
[423344114,1780065063000,-151.0,0.000149,2]
[423344113,1780065063000,-151.0,0.000149,2]
[423344115,1780065063000,-151.0,0.000149,2]
[423344116,1780065063000,-151.0,0.000149,2]
[423344120,1780065063000,-151.0,0.000149,2]
[423344121,1780065063000,-151.0,0.000149,2]
[423344110,1780065063000,-151.0,0.000149,2]
[423344122,1780065063000,-151.0,0.000149,2]
[423344118,1780065063000,-151.0,0.000149,2]
[423344117,1780065063000,-151.0,0.000149,2]
[423344123,1780065063000,-151.0,0.000149,2]
[423344125,1780065063000,-151.0,0.000149,2]
[423344126,1780065063000,-151.0,0.000149,2]
[423344127,1780065063000,-151.0,0.000149,2]
[423344129,1780065063000,-151.0,0.000149,2]
[423344131,1780065063000,-151.0,0.000149,2]
[423344128,1780065063000,-151.0,0.000149,2]
[423344132,1780065063000,-151.0,0.000149,2]
[423344133,1780065063000,-151.0,0.000149,2]
[423344073,1780065063000,-150.0,0.00014722,2]
[423344119,1780065063000,-151.0,0.000149,2]
[423344104,1780065063000,-25000.0,0.00014882,3]
[423344130,1780065063000,-151.0,0.000149,2]
[423344111,1780065063000,-151.0,0.000149,2]
[423344106,1780065063000,-211.98336987,0.00014895,2]
[423344071,1780065063000,-150.0,0.00014701,2]
[423344084,1780065063000,-211.98336987,0.00014774,2]
[423344080,1780065063000,-150.0,0.00014762,2]
[423344082,1780065063000,-150.0,0.00014766,2]
[423344083,1780065063000,-150.0,0.00014772,2]
[423344088,1780065063000,-150.0,0.00014808,2]
[423344079,1780065063000,-211.98336987,0.00014759,2]
[423344087,1780065063000,-211.98336987,0.00014805,2]
[423344089,1780065063000,-150.0,0.0001481,2]
[423344085,1780065063000,-211.98336987,0.0001479,2]
[423344086,1780065063000,-4900.0,0.000148,5]
[423344091,1780065063000,-150.0,0.0001482,2]
[423344069,1780065063000,-211.98336987,0.00014699,2]
[423344092,1780065063000,-211.98336987,0.0001482,2]
[423344105,1780065063000,-25000.0,0.00014891,3]
[423344103,1780065063000,-500.0,0.00014882,2]
[423344101,1780065063000,-150.0,0.00014879,2]
[423344093,1780065063000,-211.98336987,0.00014835,2]
[423344098,1780065063000,-150.0,0.00014854,2]
[423344099,1780065063000,-150.0,0.00014861,2]
[423344096,1780065063000,-211.98336987,0.0001485,2]
[423344100,1780065063000,-211.98336987,0.00014865,2]
[423344095,1780065063000,-150.0,0.00014844,2]
[423344090,1780065063000,-150.0,0.0001481,2]
[423344094,1780065063000,-150.0,0.00014836,2]
[423344097,1780065063000,-150.0,0.00014854,2]
[423344174,1780065064000,-790.52,0.00014999,2]
[423344172,1780065064000,-790.52,0.00014999,2]
[423344164,1780065064000,-269.36912467,0.00014986,2]
[423344168,1780065064000,-790.52,0.00014999,2]
[423344169,1780065064000,-790.52,0.00014999,2]
[423344165,1780065064000,-211.98336987,0.00014986,2]
[423344166,1780065064000,-231.22233201,0.00014986,2]
[423344161,1780065064000,-150.0,0.00014986,2]
[423344167,1780065064000,-268.67416962,0.0001499,2]
[423344163,1780065064000,-150.0,0.00014986,2]
[423344162,1780065064000,-226.42973049,0.00014986,2]
[423344173,1780065064000,-790.52,0.00014999,2]
[423344177,1780065064000,-790.52,0.00014999,2]
[423344178,1780065064000,-790.52,0.00014999,2]
[423344180,1780065064000,-790.52,0.00014999,2]
[423344181,1780065064000,-790.52,0.00014999,2]
[423344179,1780065064000,-790.52,0.00014999,2]
[423344176,1780065064000,-790.52,0.00014999,2]
[423344182,1780065064000,-790.68748951,0.00014999,2]
[423344185,1780065064000,-1012.72,0.00014999,2]
[423344184,1780065064000,-1012.72,0.00014999,2]
[423344183,1780065064000,-1012.72,0.00014999,2]
[423344186,1780065064000,-1012.72,0.00014999,2]
[423344160,1780065064000,-210.22869687,0.00014986,2]
[423344187,1780065064000,-1012.72,0.00014999,2]
[423344175,1780065064000,-790.52,0.00014999,2]
[423344170,1780065064000,-790.52,0.00014999,2]
[423344145,1780065064000,-22207.83321406,0.000149,2]
[423344159,1780065064000,-180.38729844,0.00014986,2]
[423344188,1780065064000,-1012.72,0.00014999,2]
[423344136,1780065064000,-151.0,0.000149,2]
[423344135,1780065064000,-151.0,0.000149,2]
[423344134,1780065064000,-151.0,0.000149,2]
[423344138,1780065064000,-10000.0,0.000149,2]
[423344137,1780065064000,-274.425778,0.000149,2]
[423344139,1780065064000,-11981.31797714,0.000149,2]
[423344142,1780065064000,-14756.4578142,0.000149,2]
[423344144,1780065064000,-409.79974205,0.000149,2]
[423344146,1780065064000,-211.98336987,0.00014911,2]
[423344147,1780065064000,-150.0,0.00014911,2]
[423344141,1780065064000,-4900.0,0.000149,5]
[423344140,1780065064000,-25000.0,0.000149,3]
[423344143,1780065064000,-1901.5630616,0.000149,2]
[423344153,1780065064000,-150.0,0.00014942,2]
[423344151,1780065064000,-211.98336987,0.00014941,2]
[423344154,1780065064000,-150.0,0.00014951,2]
[423344148,1780065064000,-150.0,0.00014915,2]
[423344152,1780065064000,-150.0,0.00014942,2]
[423344156,1780065064000,-211.98336987,0.00014971,2]
[423344149,1780065064000,-211.98336987,0.00014926,2]
[423344155,1780065064000,-211.98336987,0.00014956,2]
[423344150,1780065064000,-2000.0,0.00014933,7]
[423344158,1780065064000,-223.21618626,0.00014986,2]
[423344157,1780065064000,-150.0,0.00014985,2]
[423344171,1780065064000,-790.52,0.00014999,2]
[423344193,1780065064000,-1012.72,0.00014999,2]
[423344195,1780065064000,-1012.72,0.00014999,2]
[423344191,1780065064000,-1012.72,0.00014999,2]
[423344222,1780065064000,-500.0,0.00014999,2]
[423344223,1780065064000,-500.0,0.00014999,2]
[423344229,1780065064000,-164.65220892,0.00014999,2]
[423344226,1780065064000,-500.0,0.00014999,2]
[423344228,1780065064000,-500.0,0.00014999,2]
[423344227,1780065064000,-500.0,0.00014999,2]
[423344224,1780065064000,-500.0,0.00014999,2]
[423344225,1780065064000,-500.0,0.00014999,2]
[423344231,1780065064000,-552.61,0.00014999,2]
[423344230,1780065064000,-552.61,0.00014999,2]
[423344232,1780065064000,-552.61,0.00014999,2]
[423344234,1780065064000,-552.61,0.00014999,2]
[423344221,1780065064000,-500.0,0.00014999,2]
[423344235,1780065064000,-552.61,0.00014999,2]
[423344236,1780065064000,-552.61,0.00014999,2]
[423344238,1780065064000,-552.61,0.00014999,2]
[423344239,1780065064000,-552.61,0.00014999,2]
[423344237,1780065064000,-552.61,0.00014999,2]
[423344241,1780065064000,-552.61,0.00014999,2]
[423344240,1780065064000,-552.61,0.00014999,2]
[423344192,1780065064000,-1012.72,0.00014999,2]
[423344242,1780065064000,-552.61,0.00014999,2]
[423344244,1780065064000,-552.6651148,0.00014999,2]
[423344246,1780065064000,-903.67,0.00014999,2]
[423344245,1780065064000,-903.67,0.00014999,2]
[423344247,1780065064000,-903.67,0.00014999,2]
[423344233,1780065064000,-552.61,0.00014999,2]
[423344220,1780065064000,-500.0,0.00014999,2]
[423344243,1780065064000,-552.61,0.00014999,2]
[423344218,1780065064000,-500.0,0.00014999,2]
[423344219,1780065064000,-500.0,0.00014999,2]
[423344190,1780065064000,-1012.72,0.00014999,2]
[423344189,1780065064000,-1012.72,0.00014999,2]
[423344196,1780065064000,-1012.72,0.00014999,2]
[423344198,1780065064000,-1197.38478695,0.00014999,5]
[423344197,1780065064000,-1012.72,0.00014999,2]
[423344205,1780065064000,-500.0,0.00014999,2]
[423344199,1780065064000,-500.0,0.00014999,2]
[423344201,1780065064000,-500.0,0.00014999,2]
[423344200,1780065064000,-500.0,0.00014999,2]
[423344204,1780065064000,-500.0,0.00014999,2]
[423344203,1780065064000,-500.0,0.00014999,2]
[423344194,1780065064000,-1012.72,0.00014999,2]
[423344217,1780065064000,-500.0,0.00014999,2]
[423344202,1780065064000,-500.0,0.00014999,2]
[423344211,1780065064000,-500.0,0.00014999,2]
[423344207,1780065064000,-500.0,0.00014999,2]
[423344214,1780065064000,-500.0,0.00014999,2]
[423344210,1780065064000,-500.0,0.00014999,2]
[423344213,1780065064000,-500.0,0.00014999,2]
[423344215,1780065064000,-500.0,0.00014999,2]
[423344208,1780065064000,-500.0,0.00014999,2]
[423344216,1780065064000,-500.0,0.00014999,2]
[423344206,1780065064000,-500.0,0.00014999,2]
[423344209,1780065064000,-500.0,0.00014999,2]
[423344212,1780065064000,-500.0,0.00014999,2]
[423344277,1780065065000,-162.408305,0.00015,2]
[423344272,1780065065000,-1643.51913838,0.00015,30]
[423344281,1780065065000,-151.0,0.00015,2]
[423344273,1780065065000,-539.35831429,0.00015,30]
[423344271,1780065065000,-428.41384639,0.00015,2]
[423344274,1780065065000,-250.00000021,0.00015,2]
[423344279,1780065065000,-162.408305,0.00015,2]
[423344284,1780065065000,-151.0,0.00015,2]
[423344278,1780065065000,-162.408305,0.00015,2]
[423344280,1780065065000,-151.0,0.00015,2]
[423344283,1780065065000,-151.0,0.00015,2]
[423344287,1780065065000,-1080.085022,0.00015,2]
[423344286,1780065065000,-1080.085022,0.00015,2]
[423344288,1780065065000,-1080.085022,0.00015,2]
[423344282,1780065065000,-151.0,0.00015,2]
[423344285,1780065065000,-151.0,0.00015,2]
[423344290,1780065065000,-151.0,0.00015,2]
[423344292,1780065065000,-151.0,0.00015,2]
[423344276,1780065065000,-162.408305,0.00015,2]
[423344294,1780065065000,-923.097563,0.00015068,2]
[423344289,1780065065000,-1080.085022,0.00015,2]
[423344275,1780065065000,-924.46406754,0.00015,7]
[423344260,1780065065000,-903.67,0.00014999,2]
[423344269,1780065065000,-808.43,0.00015,2]
[423344295,1780065065000,-923.097563,0.00015068,2]
[423344251,1780065065000,-903.67,0.00014999,2]
[423344252,1780065065000,-500.0,0.00014999,12]
[423344250,1780065065000,-903.67,0.00014999,2]
[423344248,1780065065000,-903.67,0.00014999,2]
[423344249,1780065065000,-500.0,0.00014999,11]
[423344254,1780065065000,-500.0,0.00014999,13]
[423344253,1780065065000,-903.67,0.00014999,2]
[423344255,1780065065000,-903.67,0.00014999,2]
[423344259,1780065065000,-903.67,0.00014999,2]
[423344258,1780065065000,-500.0,0.00014999,15]
[423344261,1780065065000,-903.67,0.00014999,2]
[423344256,1780065065000,-500.0,0.00014999,14]
[423344257,1780065065000,-903.67,0.00014999,2]
[423344264,1780065065000,-903.80433604,0.00014999,2]
[423344263,1780065065000,-903.67,0.00014999,2]
[423344262,1780065065000,-903.67,0.00014999,2]
[423344265,1780065065000,-300.0,0.00014999,2]
[423344266,1780065065000,-300.0,0.00014999,2]
[423344268,1780065065000,-18107869.93505477,0.00015,2]
[423344270,1780065065000,-5622569.88520028,0.00015,2]
[423344267,1780065065000,-300.0,0.00014999,2]
[423344291,1780065065000,-151.0,0.00015,2]
[423344293,1780065065000,-176.17,0.00015068,2]
[423344299,1780065065000,-6453.0,0.0001511,2]
[423344321,1780065065000,-4101.394339,0.00016438,2]
[423344322,1780065065000,-4101.394339,0.00016438,2]
[423344323,1780065065000,-2258.0,0.00016621,2]
[423344327,1780065065000,-863.33,0.00016767,2]
[423344333,1780065065000,-1043.45278188,0.000177,2]
[423344329,1780065065000,-151.0,0.00017,4]
[423344326,1780065065000,-168.09,0.00016712,2]
[423344331,1780065065000,-167.07141607,0.00017,7]
[423344336,1780065065000,-2000.0,0.00017825,2]
[423344314,1780065065000,-239.41702357,0.00016438,2]
[423344325,1780065065000,-2000.0,0.00016622,7]
[423344335,1780065065000,-1043.45278188,0.000178,2]
[423344334,1780065065000,-2000.0,0.00017748,7]
[423344332,1780065065000,-2000.0,0.00017185,7]
[423344338,1780065065000,-1043.45278188,0.00018,2]
[423344339,1780065065000,-1661.24500993,0.00018,2]
[423344337,1780065065000,-1462.67368807,0.00018,2]
[423344340,1780065065000,-151.0,0.00018,4]
[423344341,1780065065000,-8153.8,0.00018,2]
[423344342,1780065065000,-350.0,0.00018,2]
[423344328,1780065065000,-200.0,0.000168,3]
[423344319,1780065065000,-4101.394339,0.00016438,2]
[423344330,1780065065000,-979.73,0.00017,2]
[423344320,1780065065000,-4101.394339,0.00016438,2]
[423344313,1780065065000,-209.03675546,0.00016438,2]
[423344296,1780065065000,-923.097563,0.00015068,2]
[423344300,1780065065000,-1744.0,0.00015114,2]
[423344297,1780065065000,-923.097563,0.00015068,2]
[423344298,1780065065000,-1613.0,0.0001511,2]
[423344312,1780065065000,-7567.4,0.00016438,2]
[423344303,1780065065000,-2000.0,0.00015496,7]
[423344301,1780065065000,-9999.99,0.0001531,2]
[423344307,1780065065000,-1278.23955727,0.00016,2]
[423344306,1780065065000,-150.0,0.00016,2]
[423344302,1780065065000,-1161.71,0.0001531,2]
[423344304,1780065065000,-2400.77,0.000159,2]
[423344305,1780065065000,-150.0,0.000159,2]
[423344311,1780065065000,-2000.0,0.00016059,7]
[423344308,1780065065000,-151.0,0.00016,4]
[423344310,1780065065000,-215.5484138,0.00016,3]
[423344315,1780065065000,-899.662535,0.00016438,2]
[423344318,1780065065000,-899.662535,0.00016438,2]
[423344324,1780065065000,-9035.0,0.00016621,2]
[423344317,1780065065000,-899.662535,0.00016438,2]
[423344309,1780065065000,-300.0,0.00016,2]
[423344316,1780065065000,-899.662535,0.00016438,2]
[423344373,1780065066000,-627.21927295,0.00019133,2]
[423344377,1780065066000,-264.35860867,0.00019178,2]
[423344379,1780065066000,-151.0,0.00019178,2]
[423344378,1780065066000,-151.0,0.00019178,2]
[423344381,1780065066000,-266.812185,0.00019178,2]
[423344375,1780065066000,-250.0,0.00019178,2]
[423344372,1780065066000,-627.21927295,0.00019131,2]
[423344374,1780065066000,-250.0,0.00019178,2]
[423344376,1780065066000,-250.0,0.00019178,2]
[423344382,1780065066000,-266.812185,0.00019178,2]
[423344380,1780065066000,-20430.55,0.00019178,2]
[423344384,1780065066000,-151.0,0.00019178,2]
[423344405,1780065066000,-151.0,0.00019178,2]
[423344389,1780065066000,-151.0,0.00019178,2]
[423344395,1780065066000,-151.0,0.00019178,2]
[423344392,1780065066000,-151.0,0.00019178,2]
[423344387,1780065066000,-151.0,0.00019178,2]
[423344385,1780065066000,-151.0,0.00019178,2]
[423344386,1780065066000,-151.0,0.00019178,2]
[423344393,1780065066000,-151.0,0.00019178,2]
[423344388,1780065066000,-266.812185,0.00019178,2]
[423344391,1780065066000,-151.0,0.00019178,2]
[423344390,1780065066000,-151.0,0.00019178,2]
[423344406,1780065066000,-151.0,0.00019178,2]
[423344368,1780065066000,-1043.45278188,0.000189,2]
[423344383,1780065066000,-151.0,0.00019178,2]
[423344369,1780065066000,-151.0,0.00019,4]
[423344347,1780065066000,-52274.2180569,0.0001812,2]
[423344370,1780065066000,-1043.45278188,0.000191,2]
[423344344,1780065066000,-300.0,0.00018119,2]
[423344343,1780065066000,-300.0,0.00018119,2]
[423344345,1780065066000,-24588.4070162,0.0001812,2]
[423344346,1780065066000,-1949683.3264988,0.0001812,2]
[423344397,1780065066000,-151.0,0.00019178,2]
[423344349,1780065066000,-1043.45278188,0.000182,2]
[423344350,1780065066000,-1661.24500993,0.000182,2]
[423344359,1780065066000,-1661.24500993,0.000185,2]
[423344348,1780065066000,-1462.67368807,0.000182,2]
[423344357,1780065066000,-7567.4,0.0001841,2]
[423344356,1780065066000,-1661.24500993,0.000184,2]
[423344351,1780065066000,-3162.0,0.00018283,2]
[423344352,1780065066000,-12296.0,0.00018283,2]
[423344355,1780065066000,-1043.45278188,0.000184,2]
[423344353,1780065066000,-2000.0,0.00018311,7]
[423344354,1780065066000,-1462.67368807,0.000184,2]
[423344358,1780065066000,-1462.67368807,0.000185,2]
[423344360,1780065066000,-1043.45278188,0.000186,2]
[423344362,1780065066000,-1462.67368807,0.000187,2]
[423344364,1780065066000,-1661.24500993,0.000187,2]
[423344367,1780065066000,-2000.0,0.00018874,7]
[423344366,1780065066000,-1000.0,0.00018864,2]
[423344371,1780065066000,-979.73,0.000191,2]
[423344365,1780065066000,-382460.5197923,0.00018859,2]
[423344361,1780065066000,-764.91406535,0.00018609,2]
[423344363,1780065066000,-1043.45278188,0.000187,2]
[423344396,1780065066000,-151.0,0.00019178,2]
[423344394,1780065066000,-266.812185,0.00019178,2]
[423344398,1780065066000,-151.0,0.00019178,2]
[423344431,1780065066000,-151.0,0.00019278,2]
[423344438,1780065066000,-151.0,0.00019278,2]
[423344440,1780065066000,-151.0,0.00019278,2]
[423344436,1780065066000,-151.0,0.00019278,2]
[423344434,1780065066000,-151.0,0.00019278,2]
[423344435,1780065066000,-151.0,0.00019278,2]
[423344439,1780065066000,-151.0,0.00019278,2]
[423344430,1780065066000,-151.0,0.00019278,2]
[423344433,1780065066000,-2080.17592889,0.00019278,2]
[423344437,1780065066000,-151.0,0.00019278,2]
[423344441,1780065066000,-151.0,0.00019278,2]
[423344443,1780065066000,-151.0,0.00019278,2]
[423344429,1780065066000,-151.0,0.00019278,2]
[423344451,1780065066000,-151.0,0.00019278,2]
[423344449,1780065066000,-151.0,0.00019278,2]
[423344448,1780065066000,-151.0,0.00019278,2]
[423344450,1780065066000,-151.0,0.00019278,2]
[423344447,1780065066000,-151.0,0.00019278,2]
[423344444,1780065066000,-151.0,0.00019278,2]
[423344446,1780065066000,-151.0,0.00019278,2]
[423344453,1780065066000,-221.88543241,0.00019278,2]
[423344452,1780065066000,-151.0,0.00019278,2]
[423344454,1780065066000,-151.0,0.00019278,2]
[423344455,1780065066000,-500.0,0.00019278,2]
[423344399,1780065066000,-151.0,0.00019178,2]
[423344456,1780065066000,-230.09519341,0.00019278,2]
[423344445,1780065066000,-151.0,0.00019278,2]
[423344432,1780065066000,-151.0,0.00019278,2]
[423344442,1780065066000,-151.0,0.00019278,2]
[423344425,1780065066000,-151.0,0.00019278,2]
[423344400,1780065066000,-151.0,0.00019178,2]
[423344428,1780065066000,-151.0,0.00019278,2]
[423344403,1780065066000,-151.0,0.00019178,2]
[423344401,1780065066000,-151.0,0.00019178,2]
[423344404,1780065066000,-151.0,0.00019178,2]
[423344407,1780065066000,-151.0,0.00019178,2]
[423344409,1780065066000,-151.0,0.00019178,2]
[423344408,1780065066000,-151.0,0.00019178,2]
[423344411,1780065066000,-151.0,0.00019178,2]
[423344415,1780065066000,-151.0,0.00019178,2]
[423344416,1780065066000,-151.0,0.00019178,2]
[423344410,1780065066000,-151.0,0.00019178,2]
[423344414,1780065066000,-151.0,0.00019178,2]
[423344402,1780065066000,-151.0,0.00019178,2]
[423344417,1780065066000,-151.0,0.00019178,2]
[423344426,1780065066000,-151.0,0.00019278,2]
[423344412,1780065066000,-151.0,0.00019178,2]
[423344424,1780065066000,-151.0,0.00019278,2]
[423344427,1780065066000,-151.0,0.00019278,2]
[423344423,1780065066000,-151.0,0.00019278,2]
[423344422,1780065066000,-151.0,0.00019278,2]